[Event "*** SCC Grand Prix: Titled Tuesday Blitz"]
[Site "Chess.com"]
[Date "2020.08.04"]
[Round "5"]
[White "frederiksvane"]
[Black "TigrVShlyape"]
[Result "0-1"]
[WhiteElo "2572"]
[BlackElo "2852"]
[TimeControl "180+1"]
[EndTime "14:40:38 PDT"]
[Termination "TigrVShlyape won by resignation"]

1. e4 {[%clk 0:03:00.9]} 1... e5 {[%clk 0:02:54.9]} 2. Nf3 {[%clk 0:03:00.6]}
2... Nc6 {[%clk 0:02:53.1]} 3. Bb5 {[%clk 0:03:00.8]} 3... Nf6 {[%clk
0:02:51.5]} 4. O-O {[%clk 0:02:58.9]} 4... Nxe4 {[%clk 0:02:46.2]} 5. Re1 {[%clk
0:02:59]} 5... Nd6 {[%clk 0:02:44.6]} 6. Nxe5 {[%clk 0:02:59.4]} 6... Be7 {[%clk
0:02:42.4]} 7. Bf1 {[%clk 0:02:59.2]} 7... Nxe5 {[%clk 0:02:35.3]} 8. Rxe5
{[%clk 0:03:00.1]} 8... O-O {[%clk 0:02:35.3]} 9. d4 {[%clk 0:02:59.9]} 9... Bf6
{[%clk 0:02:25.9]} 10. Re1 {[%clk 0:02:59.5]} 10... Ne8 {[%clk 0:02:22.1]} 11.
d5 {[%clk 0:02:22.9]} 11... d6 {[%clk 0:02:15.3]} 12. c4 {[%clk 0:02:22.2]}
12... Bg5 {[%clk 0:02:04.5]} 13. Nd2 {[%clk 0:02:08.1]} 13... Nf6 {[%clk
0:02:01]} 14. Bd3 {[%clk 0:02:05.9]} 14... Bg4 {[%clk 0:01:49]} 15. Qc2 {[%clk
0:01:13.2]} 15... Re8 {[%clk 0:01:37.1]} 16. Rxe8+ {[%clk 0:00:55.4]} 16... Qxe8
{[%clk 0:01:35]} 17. Ne4 {[%clk 0:00:54.9]} 17... Nxe4 {[%clk 0:01:33.7]} 18.
Bxe4 {[%clk 0:00:55.8]} 18... Bxc1 {[%clk 0:01:32.8]} 19. Rxc1 {[%clk 0:00:48]}
19... g6 {[%clk 0:01:12.1]} 20. h3 {[%clk 0:00:40.1]} 20... Bd7 {[%clk
0:01:11.1]} 21. Re1 {[%clk 0:00:35.5]} 21... Qe5 {[%clk 0:01:04]} 22. Re3 {[%clk
0:00:35.5]} 22... Qd4 {[%clk 0:01:02]} 23. Qc3 {[%clk 0:00:25.4]} 23... Qxc3
{[%clk 0:01:01.2]} 24. Rxc3 {[%clk 0:00:25.1]} 24... Re8 {[%clk 0:01:00.9]} 25.
Re3 {[%clk 0:00:25]} 25... f5 {[%clk 0:00:57.6]} 26. Bd3 {[%clk 0:00:20.3]}
26... Rxe3 {[%clk 0:00:57.8]} 27. fxe3 {[%clk 0:00:21.2]} 27... Kg7 {[%clk
0:00:56.6]} 28. Kf2 {[%clk 0:00:15.5]} 28... Kf6 {[%clk 0:00:56.8]} 29. Kf3
{[%clk 0:00:15.7]} 29... Ke5 {[%clk 0:00:56.9]} 30. h4 {[%clk 0:00:15.2]} 30...
h6 {[%clk 0:00:56.8]} 31. g3 {[%clk 0:00:15.2]} 31... g5 {[%clk 0:00:56.9]} 32.
hxg5 {[%clk 0:00:16.1]} 32... hxg5 {[%clk 0:00:56.8]} 33. b3 {[%clk 0:00:11.3]}
33... a5 {[%clk 0:00:56.5]} 34. a4 {[%clk 0:00:05.6]} 34... b6 {[%clk
0:00:56.1]} 35. Kf2 {[%clk 0:00:02.8]} 35... Be8 {[%clk 0:00:55.1]} 36. Bc2
{[%clk 0:00:01.7]} 36... Bh5 {[%clk 0:00:54.9]} 37. Ke1 {[%clk 0:00:02.2]} 37...
Bf3 {[%clk 0:00:53.7]} 38. Kf2 {[%clk 0:00:02.6]} 38... Be4 {[%clk 0:00:53.9]}
39. Bd1 {[%clk 0:00:03.1]} 39... Bd3 {[%clk 0:00:53.9]} 40. Ke1 {[%clk
0:00:03.7]} 40... Ke4 {[%clk 0:00:52]} 41. Kd2 {[%clk 0:00:04.3]} 41... Bf1
{[%clk 0:00:37.2]} 42. Bc2+ {[%clk 0:00:04.1]} 42... Kf3 {[%clk 0:00:33.4]} 43.
Bxf5 {[%clk 0:00:02.3]} 43... Kxg3 {[%clk 0:00:33.4]} 44. Kc3 {[%clk 0:00:02.7]}
44... Kf3 {[%clk 0:00:32.2]} 45. Kd4 {[%clk 0:00:02.8]} 45... g4 {[%clk
0:00:31.7]} 46. Bxg4+ {[%clk 0:00:01.8]} 46... Kxg4 {[%clk 0:00:31.5]} 47. e4
{[%clk 0:00:02.1]} 47... Kf4 {[%clk 0:00:31.6]} 0-1

[Event "*** SCC Grand Prix: Titled Tuesday Blitz"]
[Site "Chess.com"]
[Date "2020.08.04"]
[Round "5"]
[White "anpospan"]
[Black "Klavdia_Nik"]
[Result "1-0"]
[WhiteElo "2321"]
[BlackElo "2015"]
[TimeControl "180+1"]
[EndTime "14:40:38 PDT"]
[Termination "anpospan won on time"]

1. d4 {[%clk 0:03:00.9]} 1... Nf6 {[%clk 0:02:58.8]} 2. c4 {[%clk 0:03:00.7]}
2... c5 {[%clk 0:02:58.5]} 3. e3 {[%clk 0:02:59.5]} 3... b6 {[%clk 0:02:57.7]}
4. Nf3 {[%clk 0:02:59]} 4... Bb7 {[%clk 0:02:58]} 5. Nc3 {[%clk 0:02:58.6]} 5...
g6 {[%clk 0:02:57.4]} 6. d5 {[%clk 0:02:58.3]} 6... d6 {[%clk 0:02:56.8]} 7. e4
{[%clk 0:02:56.3]} 7... Bg7 {[%clk 0:02:56.7]} 8. Bd3 {[%clk 0:02:55.4]} 8...
O-O {[%clk 0:02:56.7]} 9. O-O {[%clk 0:02:55.4]} 9... Nbd7 {[%clk 0:02:56.2]}
10. h3 {[%clk 0:02:55.2]} 10... a6 {[%clk 0:02:50.7]} 11. a4 {[%clk 0:02:54.2]}
11... h6 {[%clk 0:02:49.6]} 12. Bf4 {[%clk 0:02:53.8]} 12... Ne8 {[%clk
0:02:48.2]} 13. Qd2 {[%clk 0:02:52]} 13... Kh7 {[%clk 0:02:48.1]} 14. Rfe1
{[%clk 0:02:49.6]} 14... Ne5 {[%clk 0:02:42.3]} 15. Nxe5 {[%clk 0:02:44.2]}
15... dxe5 {[%clk 0:02:41.4]} 16. Be3 {[%clk 0:02:41.4]} 16... Nd6 {[%clk
0:02:40.2]} 17. a5 {[%clk 0:02:40.7]} 17... b5 {[%clk 0:02:26.3]} 18. Bxc5
{[%clk 0:02:26.5]} 18... bxc4 {[%clk 0:02:24.4]} 19. Bxd6 {[%clk 0:02:18.9]}
19... exd6 {[%clk 0:02:13.6]} 20. Bxc4 {[%clk 0:02:18.1]} 20... Bf6 {[%clk
0:02:08.1]} 21. Qd3 {[%clk 0:02:13.5]} 21... Bg5 {[%clk 0:01:59.4]} 22. b4
{[%clk 0:02:12]} 22... h5 {[%clk 0:01:57.5]} 23. Na4 {[%clk 0:02:06.1]} 23...
Qc7 {[%clk 0:01:38.3]} 24. Nb6 {[%clk 0:02:04.3]} 24... Ra7 {[%clk 0:01:38.6]}
25. b5 {[%clk 0:01:57.3]} 25... axb5 {[%clk 0:01:33.8]} 26. Bxb5 {[%clk
0:01:57.1]} 26... Qc5 {[%clk 0:01:26.4]} 27. Re2 {[%clk 0:01:32.8]} 27... Rxa5
{[%clk 0:01:06.6]} 28. Rxa5 {[%clk 0:01:29.1]} 28... Qxb6 {[%clk 0:01:06.8]} 29.
Rea2 {[%clk 0:01:24.9]} 29... Rc8 {[%clk 0:01:00.3]} 30. Bc6 {[%clk 0:01:04.9]}
30... Bxc6 {[%clk 0:00:52.9]} 31. dxc6 {[%clk 0:01:04.3]} 31... Qxc6 {[%clk
0:00:43.5]} 32. g3 {[%clk 0:00:53.4]} 32... h4 {[%clk 0:00:42.4]} 33. Qd5 {[%clk
0:00:47.6]} 33... Qd7 {[%clk 0:00:33.7]} 34. Ra7 {[%clk 0:00:42]} 34... Rc7
{[%clk 0:00:30]} 35. Rxc7 {[%clk 0:00:40.6]} 35... Qxc7 {[%clk 0:00:30.5]} 36.
gxh4 {[%clk 0:00:37.8]} 36... Bxh4 {[%clk 0:00:27.5]} 37. Kg2 {[%clk 0:00:37.6]}
37... Kg7 {[%clk 0:00:27.1]} 38. Ra3 {[%clk 0:00:33.5]} 38... Qe7 {[%clk
0:00:18.3]} 39. Rd3 {[%clk 0:00:31.3]} 39... Qg5+ {[%clk 0:00:08.5]} 40. Kf1
{[%clk 0:00:29.3]} 40... Qc1+ {[%clk 0:00:07.6]} 41. Rd1 {[%clk 0:00:29.1]}
41... Qf4 {[%clk 0:00:06.6]} 42. Qd2 {[%clk 0:00:25.3]} 42... Qxe4 {[%clk
0:00:05.3]} 43. Qxd6 {[%clk 0:00:21.2]} 1-0

[Event "*** SCC Grand Prix: Titled Tuesday Blitz"]
[Site "Chess.com"]
[Date "2020.08.04"]
[Round "5"]
[White "IMHansNiemann"]
[Black "Evgeny81"]
[Result "1-0"]
[WhiteElo "2902"]
[BlackElo "2757"]
[TimeControl "180+1"]
[EndTime "14:40:40 PDT"]
[Termination "IMHansNiemann won by resignation"]

1. d4 {[%clk 0:03:00.9]} 1... Nf6 {[%clk 0:02:59.6]} 2. Nc3 {[%clk 0:03:01.1]}
2... d5 {[%clk 0:02:58.9]} 3. Bf4 {[%clk 0:03:00.8]} 3... c6 {[%clk 0:02:56.1]}
4. e3 {[%clk 0:03:00.3]} 4... Bg4 {[%clk 0:02:55]} 5. f3 {[%clk 0:03:00.7]} 5...
Bh5 {[%clk 0:02:47.9]} 6. g4 {[%clk 0:03:00.1]} 6... Bg6 {[%clk 0:02:48.1]} 7.
h4 {[%clk 0:03:00.7]} 7... h5 {[%clk 0:02:48.6]} 8. g5 {[%clk 0:03:01.3]} 8...
Nfd7 {[%clk 0:02:48.9]} 9. Bd3 {[%clk 0:03:01.8]} 9... Bxd3 {[%clk 0:02:47.3]}
10. Qxd3 {[%clk 0:02:58.7]} 10... g6 {[%clk 0:02:47.5]} 11. e4 {[%clk 0:02:59]}
11... e6 {[%clk 0:02:45.8]} 12. Nge2 {[%clk 0:02:57]} 12... Na6 {[%clk 0:02:40]}
13. a3 {[%clk 0:02:54.3]} 13... Nb6 {[%clk 0:02:27.3]} 14. exd5 {[%clk
0:02:40.1]} 14... cxd5 {[%clk 0:02:18.5]} 15. Nb5 {[%clk 0:02:38]} 15... Nc4
{[%clk 0:02:07.9]} 16. b3 {[%clk 0:02:32.3]} 16... Nd6 {[%clk 0:01:51.9]} 17.
Be5 {[%clk 0:02:30.4]} 17... Rg8 {[%clk 0:01:50.4]} 18. Nxd6+ {[%clk 0:02:22.3]}
18... Bxd6 {[%clk 0:01:50]} 19. Qb5+ {[%clk 0:02:22.5]} 19... Qd7 {[%clk
0:01:47.2]} 20. Qxd7+ {[%clk 0:02:18.4]} 20... Kxd7 {[%clk 0:01:48.1]} 21. Bxd6
{[%clk 0:02:19.1]} 21... Kxd6 {[%clk 0:01:48.4]} 22. c4 {[%clk 0:02:19.7]} 22...
dxc4 {[%clk 0:01:44]} 23. bxc4 {[%clk 0:02:20.6]} 23... Rac8 {[%clk 0:01:41.5]}
24. Rc1 {[%clk 0:02:18.2]} 24... Nb8 {[%clk 0:01:37.9]} 25. Kd2 {[%clk
0:02:15.9]} 25... Nc6 {[%clk 0:01:35.4]} 26. Kd3 {[%clk 0:02:15.9]} 26... Rgd8
{[%clk 0:01:33.9]} 27. Rb1 {[%clk 0:02:13.7]} 27... b6 {[%clk 0:01:32.1]} 28. f4
{[%clk 0:02:08.5]} 28... Ne7 {[%clk 0:01:29.7]} 29. Ng3 {[%clk 0:02:05.2]} 29...
Kc7 {[%clk 0:01:24.9]} 30. Rhc1 {[%clk 0:02:01.5]} 30... Nc6 {[%clk 0:01:18.7]}
31. Ne2 {[%clk 0:02:01]} 31... Rd7 {[%clk 0:01:14.1]} 32. Ke4 {[%clk 0:01:59.9]}
32... Ne7 {[%clk 0:01:07.5]} 33. Ng3 {[%clk 0:01:49.2]} 33... Rcd8 {[%clk
0:01:05.5]} 34. Rd1 {[%clk 0:01:49]} 34... Nf5 {[%clk 0:01:01.2]} 35. Nxf5
{[%clk 0:01:42.8]} 35... exf5+ {[%clk 0:01:02.1]} 36. Ke5 {[%clk 0:01:38.6]}
36... Rd6 {[%clk 0:00:58.4]} 37. d5 {[%clk 0:01:34.2]} 37... Re8+ {[%clk
0:00:58.3]} 38. Kd4 {[%clk 0:01:34]} 38... Re4+ {[%clk 0:00:59.2]} 39. Kd3
{[%clk 0:01:34.9]} 39... Rxf4 {[%clk 0:00:59.1]} 40. Rh1 {[%clk 0:01:32.9]}
40... Rd8 {[%clk 0:00:47.1]} 41. Rbe1 {[%clk 0:01:32.2]} 41... Kd6 {[%clk
0:00:41.8]} 42. Ref1 {[%clk 0:01:17.7]} 42... Rxf1 {[%clk 0:00:34.9]} 43. Rxf1
{[%clk 0:01:18.6]} 43... Re8 {[%clk 0:00:35.2]} 44. a4 {[%clk 0:01:16.9]} 44...
Re4 {[%clk 0:00:31.3]} 45. a5 {[%clk 0:01:16]} 45... Rxh4 {[%clk 0:00:28.9]} 46.
axb6 {[%clk 0:01:15.2]} 46... axb6 {[%clk 0:00:28.8]} 47. Rb1 {[%clk 0:01:15.1]}
47... Kc7 {[%clk 0:00:27.7]} 48. Ra1 {[%clk 0:01:15.2]} 48... Kb7 {[%clk
0:00:19.2]} 49. Rb1 {[%clk 0:01:15]} 49... Kc7 {[%clk 0:00:18.4]} 50. Ra1 {[%clk
0:01:14.8]} 50... Rg4 {[%clk 0:00:15.4]} 51. Ra7+ {[%clk 0:01:14.5]} 51... Kd8
{[%clk 0:00:14.8]} 52. Rxf7 {[%clk 0:01:12.1]} 52... Rxg5 {[%clk 0:00:14.1]} 53.
Kd4 {[%clk 0:01:08.5]} 53... h4 {[%clk 0:00:14.4]} 54. Ke5 {[%clk 0:01:03.7]}
54... h3 {[%clk 0:00:09.9]} 55. Ke6 {[%clk 0:01:03.5]} 55... h2 {[%clk
0:00:06.8]} 56. d6 {[%clk 0:01:00.1]} 56... Kc8 {[%clk 0:00:04.3]} 57. d7+
{[%clk 0:01:00.2]} 57... Kc7 {[%clk 0:00:04.3]} 58. Rf8 {[%clk 0:01:00.6]} 58...
h1=Q {[%clk 0:00:03.4]} 59. d8=Q+ {[%clk 0:01:00.5]} 59... Kb7 {[%clk
0:00:02.7]} 60. Qa8+ {[%clk 0:00:59.2]} 1-0

[Event "*** SCC Grand Prix: Titled Tuesday Blitz"]
[Site "Chess.com"]
[Date "2020.08.04"]
[Round "5"]
[White "Martins-BR"]
[Black "GianmarcoVaR"]
[Result "1/2-1/2"]
[WhiteElo "2227"]
[BlackElo "2462"]
[TimeControl "180+1"]
[EndTime "14:40:41 PDT"]
[Termination "Game drawn by repetition"]

1. e4 {[%clk 0:03:00.9]} 1... c6 {[%clk 0:02:59.1]} 2. d4 {[%clk 0:02:59.8]}
2... d5 {[%clk 0:02:59.4]} 3. Nc3 {[%clk 0:03:00.2]} 3... dxe4 {[%clk
0:02:59.3]} 4. Nxe4 {[%clk 0:03:01.1]} 4... Bf5 {[%clk 0:02:57.6]} 5. Ng3 {[%clk
0:03:00.7]} 5... Bg6 {[%clk 0:02:58]} 6. Bc4 {[%clk 0:03:00.4]} 6... e6 {[%clk
0:02:57.6]} 7. N1e2 {[%clk 0:02:59.5]} 7... Bd6 {[%clk 0:02:56.4]} 8. h4 {[%clk
0:02:58.7]} 8... h6 {[%clk 0:02:55.7]} 9. Nf4 {[%clk 0:02:58.6]} 9... Bxf4
{[%clk 0:02:55.9]} 10. Bxf4 {[%clk 0:02:59.5]} 10... Nf6 {[%clk 0:02:55.6]} 11.
h5 {[%clk 0:02:58.4]} 11... Bh7 {[%clk 0:02:55.3]} 12. Qd2 {[%clk 0:02:43.3]}
12... Nbd7 {[%clk 0:02:49.6]} 13. O-O-O {[%clk 0:02:41.1]} 13... a5 {[%clk
0:02:38]} 14. Bd3 {[%clk 0:02:39.3]} 14... Nd5 {[%clk 0:02:20.9]} 15. Bxh7
{[%clk 0:02:37.2]} 15... Rxh7 {[%clk 0:02:17.5]} 16. Ne4 {[%clk 0:02:36.1]}
16... Qb6 {[%clk 0:02:09.5]} 17. Nd6+ {[%clk 0:02:32.6]} 17... Kf8 {[%clk
0:02:09.6]} 18. Nc4 {[%clk 0:02:22.7]} 18... Qd8 {[%clk 0:02:09.1]} 19. g4
{[%clk 0:01:55.3]} 19... Nxf4 {[%clk 0:02:06.2]} 20. Qxf4 {[%clk 0:01:53.9]}
20... Qg5 {[%clk 0:02:06.9]} 21. Qxg5 {[%clk 0:01:52.6]} 21... hxg5 {[%clk
0:02:07.8]} 22. f3 {[%clk 0:01:50.5]} 22... Ke7 {[%clk 0:02:04.6]} 23. Rhe1
{[%clk 0:01:48.6]} 23... Rhh8 {[%clk 0:02:01.2]} 24. d5 {[%clk 0:01:47.1]} 24...
cxd5 {[%clk 0:01:41.7]} 25. Rxd5 {[%clk 0:01:45.7]} 25... Rhc8 {[%clk
0:01:42.3]} 26. Nxa5 {[%clk 0:01:36.1]} 26... Rc5 {[%clk 0:01:12.6]} 27. Rxc5
{[%clk 0:01:33.6]} 27... Nxc5 {[%clk 0:01:13.5]} 28. b4 {[%clk 0:01:29]} 28...
Na4 {[%clk 0:01:08.9]} 29. Re5 {[%clk 0:01:19.4]} 29... b6 {[%clk 0:00:59.4]}
30. Nb3 {[%clk 0:01:13]} 30... Kf6 {[%clk 0:00:48.4]} 31. Re3 {[%clk 0:01:06.2]}
31... Rc8 {[%clk 0:00:46.4]} 32. Kd2 {[%clk 0:01:03]} 32... Nb2 {[%clk
0:00:46.3]} 33. Rc3 {[%clk 0:00:55.3]} 33... Rd8+ {[%clk 0:00:46.5]} 34. Ke2
{[%clk 0:00:52.4]} 34... b5 {[%clk 0:00:45.3]} 35. Rc5 {[%clk 0:00:49.6]} 35...
Na4 {[%clk 0:00:44.5]} 36. Rc7 {[%clk 0:00:45.1]} 36... Rd5 {[%clk 0:00:39.3]}
37. c3 {[%clk 0:00:43.4]} 37... Ke5 {[%clk 0:00:36.4]} 38. Nd4 {[%clk
0:00:42.3]} 38... Nxc3+ {[%clk 0:00:35.7]} 39. Rxc3 {[%clk 0:00:39.2]} 39...
Rxd4 {[%clk 0:00:35.9]} 40. a3 {[%clk 0:00:38]} 40... Kd6 {[%clk 0:00:25.8]} 41.
Rc5 {[%clk 0:00:35.7]} 41... Rd5 {[%clk 0:00:24.3]} 42. Rc8 {[%clk 0:00:31.8]}
42... Ke7 {[%clk 0:00:20.2]} 43. Rg8 {[%clk 0:00:26.2]} 43... Kf6 {[%clk
0:00:17.7]} 44. Rb8 {[%clk 0:00:25.8]} 44... Ke5 {[%clk 0:00:17.1]} 45. Ke3
{[%clk 0:00:25.3]} 45... Kf6 {[%clk 0:00:15.6]} 46. Rb7 {[%clk 0:00:24.1]} 46...
Re5+ {[%clk 0:00:15.5]} 47. Kf2 {[%clk 0:00:21.6]} 47... Rd5 {[%clk 0:00:15.2]}
48. Ke3 {[%clk 0:00:21.6]} 48... Re5+ {[%clk 0:00:15.3]} 49. Kf2 {[%clk
0:00:21.6]} 49... Rd5 {[%clk 0:00:15.7]} 50. Ke3 {[%clk 0:00:21.7]} 1/2-1/2

[Event "*** SCC Grand Prix: Titled Tuesday Blitz"]
[Site "Chess.com"]
[Date "2020.08.04"]
[Round "5"]
[White "ace_mar"]
[Black "Flopezin"]
[Result "0-1"]
[WhiteElo "2463"]
[BlackElo "2331"]
[TimeControl "180+1"]
[EndTime "14:40:46 PDT"]
[Termination "Flopezin won by resignation"]

1. d4 {[%clk 0:03:00.9]} 1... Nf6 {[%clk 0:02:59.3]} 2. c4 {[%clk 0:03:01.1]}
2... e6 {[%clk 0:02:59.4]} 3. g3 {[%clk 0:03:01.7]} 3... c5 {[%clk 0:02:58.9]}
4. d5 {[%clk 0:03:01.7]} 4... d6 {[%clk 0:02:59.2]} 5. Nc3 {[%clk 0:03:01.3]}
5... exd5 {[%clk 0:02:59.6]} 6. cxd5 {[%clk 0:03:02.2]} 6... g6 {[%clk
0:03:00.2]} 7. Bg2 {[%clk 0:03:02.9]} 7... Bg7 {[%clk 0:03:01]} 8. Nf3 {[%clk
0:03:03.6]} 8... O-O {[%clk 0:03:01.7]} 9. O-O {[%clk 0:03:04.3]} 9... Re8
{[%clk 0:03:02.4]} 10. Bf4 {[%clk 0:03:04.1]} 10... Qd7 {[%clk 0:02:44.8]} 11.
Nd2 {[%clk 0:02:52.4]} 11... b5 {[%clk 0:02:43.9]} 12. e4 {[%clk 0:02:46.6]}
12... b4 {[%clk 0:02:42]} 13. Ne2 {[%clk 0:02:37.9]} 13... Ba6 {[%clk
0:02:40.1]} 14. Re1 {[%clk 0:02:37.4]} 14... Ng4 {[%clk 0:02:38.6]} 15. Qc2
{[%clk 0:02:33.9]} 15... Ne5 {[%clk 0:02:35.8]} 16. Bxe5 {[%clk 0:02:23.2]}
16... Bxe5 {[%clk 0:02:34.3]} 17. f4 {[%clk 0:02:22.6]} 17... Bg7 {[%clk
0:02:32]} 18. a3 {[%clk 0:02:18.8]} 18... Qb5 {[%clk 0:02:24.7]} 19. axb4 {[%clk
0:02:10.8]} 19... Qxb4 {[%clk 0:02:09.2]} 20. Nc3 {[%clk 0:02:08.8]} 20... Qb7
{[%clk 0:01:55.2]} 21. e5 {[%clk 0:02:01]} 21... Nd7 {[%clk 0:01:51.8]} 22. Nde4
{[%clk 0:01:55.8]} 22... Nxe5 {[%clk 0:01:46]} 23. Nxd6 {[%clk 0:01:49.8]} 23...
Qb6 {[%clk 0:01:38.4]} 24. fxe5 {[%clk 0:01:27.3]} 24... Rxe5 {[%clk 0:01:37.2]}
25. Rxe5 {[%clk 0:01:24]} 25... Bxe5 {[%clk 0:01:37.9]} 26. Nde4 {[%clk
0:01:23.7]} 26... Bb7 {[%clk 0:01:24.9]} 27. Na4 {[%clk 0:01:08.9]} 27... Qb4
{[%clk 0:01:24.8]} 28. Naxc5 {[%clk 0:00:43]} 28... Rc8 {[%clk 0:01:24.6]} 29.
Ra4 {[%clk 0:00:12.5]} 29... Qb5 {[%clk 0:01:13]} 30. Bf1 {[%clk 0:00:09.3]}
30... Qb6 {[%clk 0:01:08.4]} 31. Kg2 {[%clk 0:00:08.4]} 31... Bxd5 {[%clk
0:01:07]} 32. b4 {[%clk 0:00:07.8]} 32... f5 {[%clk 0:01:02.4]} 33. Bc4 {[%clk
0:00:07.9]} 33... Qc6 {[%clk 0:00:49.4]} 34. Ra6 {[%clk 0:00:07.9]} 34... Qa8
{[%clk 0:00:48.9]} 35. Bxd5+ {[%clk 0:00:07.8]} 35... Qxd5 {[%clk 0:00:49.1]}
36. Rxa7 {[%clk 0:00:08.1]} 36... fxe4 {[%clk 0:00:47.8]} 37. Qxe4 {[%clk
0:00:08.5]} 37... Rxc5 {[%clk 0:00:45.6]} 38. Qxd5+ {[%clk 0:00:05.7]} 38...
Rxd5 {[%clk 0:00:45.5]} 39. Rb7 {[%clk 0:00:06.6]} 39... Rd3 {[%clk 0:00:42.8]}
40. h4 {[%clk 0:00:06.4]} 40... Rb3 {[%clk 0:00:42.9]} 41. Kf2 {[%clk
0:00:07.3]} 41... Bxg3+ {[%clk 0:00:38.9]} 42. Ke2 {[%clk 0:00:07.7]} 42... Bxh4
{[%clk 0:00:39.8]} 43. Kd2 {[%clk 0:00:08]} 43... h6 {[%clk 0:00:34.9]} 44. Kc2
{[%clk 0:00:08.3]} 44... Re3 {[%clk 0:00:31.2]} 45. b5 {[%clk 0:00:08.1]} 45...
Bd8 {[%clk 0:00:26.6]} 46. Rb8 {[%clk 0:00:06.5]} 46... Re8 {[%clk 0:00:19.5]}
47. Rb6 {[%clk 0:00:06.5]} 47... Kf7 {[%clk 0:00:20.3]} 0-1

[Event "*** SCC Grand Prix: Titled Tuesday Blitz"]
[Site "Chess.com"]
[Date "2020.08.04"]
[Round "5"]
[White "vladislavkovalev"]
[Black "BilodeauA"]
[Result "0-1"]
[WhiteElo "2885"]
[BlackElo "2881"]
[TimeControl "180+1"]
[EndTime "14:40:50 PDT"]
[Termination "BilodeauA won by resignation"]

1. e4 {[%clk 0:03:00.9]} 1... e5 {[%clk 0:03:00.4]} 2. Nf3 {[%clk 0:03:01.5]}
2... Nc6 {[%clk 0:03:00.9]} 3. Bb5 {[%clk 0:03:02.1]} 3... a6 {[%clk 0:03:00.8]}
4. Ba4 {[%clk 0:03:02.7]} 4... d6 {[%clk 0:03:01.5]} 5. O-O {[%clk 0:03:01.4]}
5... Bd7 {[%clk 0:03:01.9]} 6. d4 {[%clk 0:03:01.3]} 6... Nge7 {[%clk
0:02:58.3]} 7. d5 {[%clk 0:02:52.8]} 7... Nb8 {[%clk 0:02:58.2]} 8. c4 {[%clk
0:02:52.7]} 8... Ng6 {[%clk 0:02:58.2]} 9. Nc3 {[%clk 0:02:51.7]} 9... Be7
{[%clk 0:02:58.5]} 10. Be3 {[%clk 0:02:46.6]} 10... O-O {[%clk 0:02:58.3]} 11.
Bxd7 {[%clk 0:02:46.2]} 11... Qxd7 {[%clk 0:02:58.5]} 12. b4 {[%clk 0:02:44.2]}
12... f5 {[%clk 0:02:58.6]} 13. exf5 {[%clk 0:02:43.9]} 13... Qxf5 {[%clk
0:02:59.5]} 14. Nd2 {[%clk 0:02:32.1]} 14... Nh4 {[%clk 0:02:43.2]} 15. g3
{[%clk 0:02:11.3]} 15... Qg6 {[%clk 0:02:42.7]} 16. Nce4 {[%clk 0:01:51.7]}
16... Nd7 {[%clk 0:02:33.9]} 17. Qe2 {[%clk 0:01:47.1]} 17... h6 {[%clk
0:02:27.3]} 18. f3 {[%clk 0:01:40.1]} 18... Rf7 {[%clk 0:02:10.8]} 19. Kh1
{[%clk 0:01:38.4]} 19... Nf5 {[%clk 0:02:10.9]} 20. Bg1 {[%clk 0:01:34.3]} 20...
Raf8 {[%clk 0:02:10.4]} 21. Qd3 {[%clk 0:01:26.4]} 21... Bg5 {[%clk 0:02:05]}
22. Nb3 {[%clk 0:01:10.6]} 22... Nf6 {[%clk 0:01:54.2]} 23. Rad1 {[%clk
0:01:01.1]} 23... h5 {[%clk 0:01:17.5]} 24. Nxf6+ {[%clk 0:00:49.5]} 24... Rxf6
{[%clk 0:01:09.4]} 25. Na5 {[%clk 0:00:48.8]} 25... Qf7 {[%clk 0:00:35]} 26.
Nxb7 {[%clk 0:00:29.7]} 26... h4 {[%clk 0:00:34.7]} 27. g4 {[%clk 0:00:20.2]}
27... Ne7 {[%clk 0:00:35]} 28. c5 {[%clk 0:00:18.2]} 28... Ng6 {[%clk
0:00:33.6]} 29. a4 {[%clk 0:00:08.2]} 29... h3 {[%clk 0:00:32.8]} 30. Qe4 {[%clk
0:00:04.5]} 30... Nh4 {[%clk 0:00:28.1]} 31. b5 {[%clk 0:00:03]} 31... axb5
{[%clk 0:00:26.9]} 32. axb5 {[%clk 0:00:03.5]} 32... Rf4 {[%clk 0:00:26.9]} 33.
Qe2 {[%clk 0:00:02.5]} 33... e4 {[%clk 0:00:25]} 34. b6 {[%clk 0:00:02.4]} 34...
exf3 {[%clk 0:00:19.3]} 35. Qe6 {[%clk 0:00:03.3]} 35... cxb6 {[%clk 0:00:14]}
36. c6 {[%clk 0:00:03.2]} 36... f2 {[%clk 0:00:07]} 37. c7 {[%clk 0:00:02.1]}
37... fxg1=Q+ {[%clk 0:00:06.2]} 38. Kxg1 {[%clk 0:00:02.6]} 38... Qxe6 {[%clk
0:00:05]} 39. dxe6 {[%clk 0:00:02.5]} 39... Nf3+ {[%clk 0:00:05.3]} 40. Rxf3
{[%clk 0:00:02.4]} 40... Rxf3 {[%clk 0:00:05.6]} 41. Nxd6 {[%clk 0:00:03]} 41...
Be3+ {[%clk 0:00:05]} 42. Kh1 {[%clk 0:00:03.6]} 42... Rf1+ {[%clk 0:00:05.7]}
0-1